bitfinex-derivatives/quotes_BTCF0:USTF0_20250528
["timestamp","ask_amount","ask_price","bid_price","bid_amount"]
[1748418241935,0.41269164,108970.0,108960.0,1.52782294]
[1748418242340,0.41269164,108970.0,108960.0,1.51759403]
[1748418243423,0.41269164,108970.0,108960.0,1.4813282]
[1748418244336,0.41269164,108970.0,108960.0,1.51759848]
[1748418246836,0.29135339,108970.0,108960.0,1.51759848]
[1748418247039,0.41269164,108970.0,108960.0,1.51759848]
[1748418250643,0.41269164,108970.0,108960.0,1.57321085]
[1748418255833,0.41269164,108970.0,108960.0,1.57403058]
[1748418256039,0.41269164,108970.0,108960.0,1.69046764]
[1748418256941,0.41269164,108970.0,108960.0,1.57403058]
[1748418258033,0.41269164,108970.0,108960.0,1.75702356]
[1748418259338,0.41269164,108970.0,108960.0,1.81846258]
[1748418259543,0.41269164,108970.0,108960.0,1.69047272]
[1748418260245,0.41269164,108970.0,108960.0,1.69047195]
[1748418260839,0.41269164,108970.0,108960.0,1.27383195]
[1748418261039,0.41269164,108970.0,108960.0,1.69043195]
[1748418262245,0.41269164,108970.0,108960.0,1.5286432]
[1748418264044,0.41269164,108970.0,108960.0,1.1678432]
[1748418264347,0.41269164,108970.0,108960.0,1.5286432]
[1748418268949,0.41269164,108970.0,108960.0,1.52851878]
[1748418269841,0.41257164,108970.0,108960.0,1.52851878]
[1748418270541,0.38107164,108970.0,108960.0,1.52851878]
[1748418270742,0.38107164,108970.0,108960.0,1.4812882]
[1748418272057,0.38107164,108970.0,108960.0,1.52851878]
[1748418272243,0.38107164,108970.0,108960.0,1.57386539]
[1748418273349,0.38107164,108970.0,108960.0,1.57356211]
[1748418274547,0.41407164,108970.0,108960.0,1.57356211]
[1748418280342,0.41407164,108970.0,108960.0,1.62856523]
[1748418280545,0.41407164,108970.0,108960.0,1.75655509]
[1748418282456,0.41407164,108970.0,108960.0,1.75655732]
[1748418283753,0.41407164,108970.0,108960.0,1.57356434]
[1748418285262,0.29273339,108970.0,108960.0,1.57356434]
[1748418285467,0.41407164,108970.0,108960.0,1.57356434]
[1748418285658,0.41407164,108970.0,108960.0,1.52663481]
[1748418285858,0.41407164,108970.0,108960.0,1.4812882]
[1748418288866,0.3575225,108970.0,108960.0,1.51865961]
[1748418289354,0.3905225,108970.0,108960.0,1.51865961]
[1748418289955,0.3885225,108970.0,108960.0,1.51965961]
[1748418290448,0.3845225,108970.0,108960.0,1.51965961]
[1748418291164,0.38452195,108970.0,108960.0,1.51965961]
[1748418291663,0.38452195,108970.0,108960.0,1.43662286]
[1748418291865,0.41752195,108970.0,108960.0,1.43662286]
[1748418293468,0.45042195,108970.0,108960.0,1.43662286]
[1748418294977,0.45042195,108970.0,108960.0,1.50142286]
[1748418295580,0.45042124,108970.0,108960.0,1.50142286]
[1748418296282,0.41019164,108970.0,108960.0,1.56598067]
[1748418296582,0.41019164,108970.0,108960.0,1.73931714]
[1748418298481,0.41019164,108970.0,108960.0,1.68431402]
[1748418298873,0.41019164,108970.0,108960.0,1.55632416]
[1748418299381,0.41019164,108970.0,108960.0,1.68431402]
[1748418299582,0.41019164,108970.0,108960.0,1.73931714]
[1748418300080,0.41019164,108970.0,108960.0,1.73931662]
[1748418300680,0.41019164,108970.0,108960.0,1.6843135]
[1748418300881,0.41019164,108970.0,108960.0,1.73931662]
[1748418301182,0.41019164,108970.0,108960.0,1.55632364]
[1748418301487,0.37729164,108970.0,108960.0,1.67766189]
[1748418301885,0.37729164,108970.0,108960.0,1.55632364]
[1748418302776,0.37729164,108970.0,108960.0,1.55611839]
[1748418303579,0.37729164,108970.0,108960.0,1.67745664]
[1748418303982,0.37717164,108970.0,108960.0,1.67745664]
[1748418304175,0.25595339,108970.0,108960.0,1.67745664]
[1748418304375,0.37729164,108970.0,108960.0,1.67745664]
[1748418304772,0.37729164,108970.0,108960.0,1.55611839]
[1748418306982,0.40879164,108970.0,108960.0,1.55611839]
[1748418309078,0.40879164,108970.0,108960.0,1.55607839]
[1748418309782,0.40879164,108970.0,108960.0,1.61108151]
[1748418309973,0.40879164,108970.0,108960.0,1.73907137]
[1748418311081,0.53012989,108970.0,108960.0,1.51099992]
[1748418311395,0.40879164,108970.0,108960.0,1.69446812]
[1748418313185,0.40879164,108970.0,108960.0,1.27790812]
[1748418313488,0.40879164,108970.0,108960.0,1.639465]
[1748418314282,0.40879164,108970.0,108960.0,1.69446812]
[1748418314885,0.40879164,108970.0,108960.0,1.639465]
[1748418315088,0.40879164,108970.0,108960.0,1.51147514]
[1748418315795,0.40879164,108970.0,108960.0,1.51136953]
[1748418319895,0.40879164,108970.0,108960.0,1.46475481]
[1748418320096,0.40879164,108970.0,108960.0,1.5113653]
[1748418321697,0.40879164,108970.0,108960.0,1.5736653]
[1748418328706,0.40879164,108970.0,108960.0,1.57366428]
[1748418331807,0.40879164,108970.0,108960.0,1.70165414]
[1748418332502,0.40879164,108970.0,108960.0,1.57366428]
[1748418332708,0.28745339,108970.0,108960.0,1.57366428]
[1748418333114,0.40879164,108970.0,108960.0,1.57366428]
[1748418336313,0.40879164,108970.0,108960.0,1.15710428]
[1748418336499,0.40879164,108970.0,108960.0,1.57366428]
[1748418337310,0.40879164,108970.0,108960.0,1.57368203]
[1748418339307,0.40879164,108970.0,108960.0,1.52705481]
[1748418339506,0.40879164,108970.0,108960.0,1.4817082]
[1748418346015,0.40879164,108970.0,108960.0,1.52815678]
[1748418346315,0.40879164,108970.0,108960.0,1.57350339]
[1748418348208,0.40879164,108970.0,108960.0,1.52705481]
[1748418348414,0.37729164,108970.0,108960.0,1.4817082]
[1748418348618,0.37729164,108970.0,108960.0,1.52705481]
[1748418348919,0.37717164,108970.0,108960.0,1.52705481]
[1748418349105,0.37729164,108970.0,108960.0,1.52705481]
[1748418350404,0.40999164,108970.0,108960.0,1.52705481]
[1748418353314,0.40999164,108970.0,108960.0,1.4817082]
[1748418355215,0.40999164,108970.0,108960.0,1.8425082]
[1748418356408,0.40999164,108970.0,108960.0,1.93392832]
[1748418356809,0.40999164,108970.0,108960.0,1.88785481]
[1748418359717,0.40999164,108970.0,108960.0,1.8425082]
[1748418360218,0.40999164,108970.0,108960.0,1.1209082]
[1748418360420,0.40999164,108970.0,108960.0,1.8425082]
[1748418361919,0.40999164,108970.0,108960.0,1.3300682]
[1748418362119,0.40999164,108970.0,108960.0,1.8425482]
[1748418363021,0.40999164,108970.0,108960.0,1.88789481]
[1748418363219,0.40999164,108970.0,108960.0,1.93396832]
[1748418367224,0.40999164,108970.0,108960.0,1.21236832]
[1748418367425,0.40999164,108970.0,108960.0,1.93396832]
[1748418368017,0.40999164,108970.0,108960.0,2.05042302]
[1748418370527,0.40999164,108970.0,108960.0,2.05222152]
[1748418370728,0.28865339,108970.0,108960.0,2.05222152]
[1748418371029,0.40999164,108970.0,108960.0,2.05222152]
[1748418371721,0.40999164,108970.0,108960.0,1.33062152]
[1748418371921,0.40999164,108970.0,108960.0,2.05222152]
[1748418373926,0.28865339,108970.0,108960.0,2.05222152]
[1748418374227,0.40999164,108970.0,108960.0,2.05222152]
[1748418375031,0.40999164,108970.0,108960.0,2.05213283]
[1748418377726,0.40999164,108970.0,108960.0,1.63553283]
[1748418377932,0.40999164,108970.0,108960.0,2.05205283]
[1748418378931,0.40999164,108970.0,108960.0,1.93559813]
[1748418379319,0.40999164,108970.0,108960.0,1.93560424]
[1748418380528,0.28865339,108970.0,108960.0,1.93560424]
[1748418380730,0.40999164,108970.0,108960.0,1.93560424]
[1748418382330,0.40999164,108970.0,108960.0,2.07325061]
[1748418382529,0.40999164,108970.0,108960.0,2.13674812]
[1748418382727,0.40999164,108970.0,108960.0,2.24736939]
[1748418382934,0.40999164,108970.0,108960.0,2.11937953]
[1748418383133,0.40999164,108970.0,108960.0,2.05588202]
[1748418388434,0.40999164,108970.0,108960.0,1.45589382]
[1748418388633,0.40999164,108970.0,108960.0,1.81015382]
[1748418388824,0.40999164,108970.0,108960.0,1.99362192]
[1748418390536,0.40999164,108970.0,108960.0,1.81015382]
[1748418390837,0.40999164,108970.0,108960.0,1.99362182]
[1748418392329,0.40999164,108970.0,108960.0,1.9936259]
[1748418392836,0.28865339,108970.0,108960.0,2.06016548]
[1748418393135,0.40999164,108970.0,108960.0,2.06016548]
[1748418393539,0.40999164,108970.0,108960.0,2.09196548]
[1748418394032,0.40999164,108970.0,108960.0,1.73116548]
[1748418394233,0.40999164,108970.0,108960.0,1.5481725]
[1748418396743,0.40999164,108970.0,108960.0,1.54817674]
[1748418398043,0.28865339,108970.0,108960.0,1.58057674]
[1748418398245,0.40999164,108970.0,108960.0,1.58057674]
[1748418401250,0.40999164,108970.0,108960.0,1.58040344]
[1748418403250,0.40999164,108970.0,108960.0,1.69689713]
[1748418403849,0.40999164,108970.0,108960.0,1.71689713]
[1748418404048,0.40999164,108970.0,108960.0,1.30033713]
[1748418404240,0.40999164,108970.0,108960.0,1.71789713]
[1748418405642,0.40999164,108970.0,108960.0,1.60124667]
[1748418410043,0.40999164,108970.0,108960.0,1.60112337]
[1748418412353,0.40999164,108970.0,108960.0,1.71761706]
[1748418414041,0.53132989,108970.0,108960.0,1.05238906]
[1748418414249,0.53132989,108970.0,108960.0,0.93589537]
[1748418414448,0.53132989,108970.0,108960.0,1.32108022]
[1748418414855,0.53132989,108970.0,108960.0,1.35318022]
[1748418415056,0.53132989,108970.0,108960.0,0.84633861]
[1748418416356,0.53132989,108970.0,108960.0,0.87703861]
[1748418419169,0.53332989,108970.0,108960.0,0.87603861]
[1748418420366,1.43262814,108970.0,108960.0,0.39672629]
[1748418420555,0.183468,108960.0,108950.0,0.07930852]
[1748418420755,1.00468275,108960.0,108950.0,0.36013753]
[1748418421168,1.00468275,108960.0,108950.0,0.10013753]
[1748418423674,1.00668275,108960.0,108950.0,0.10013753]
[1748418425573,1.01116484,108960.0,108950.0,0.14594009]
[1748418426362,0.88982659,108960.0,108950.0,0.14594009]
[1748418426966,0.88982659,108960.0,108950.0,0.14593326]
[1748418428074,0.88982659,108960.0,108950.0,0.17713326]
[1748418430180,0.88982659,108960.0,108950.0,0.17711915]
[1748418433583,0.64715009,108960.0,108950.0,0.17711915]
[1748418433886,0.88982659,108960.0,108950.0,0.17711915]
[1748418434587,0.88982659,108960.0,108950.0,0.17711156]
[1748418437789,0.88982659,108960.0,108950.0,0.13133753]
[1748418438489,0.88982659,108960.0,108950.0,0.17711686]
[1748418438690,0.88982659,108960.0,108950.0,0.13133753]
[1748418439686,0.89982659,108960.0,108950.0,0.13133753]
[1748418444279,0.89982659,108960.0,108950.0,0.17714453]
[1748418445483,0.89982659,108960.0,108950.0,0.21504858]
[1748418447383,0.89982659,108960.0,108950.0,0.13133753]
[1748418448495,0.93910537,108960.0,108950.0,0.16924158]
[1748418451197,0.57830537,108960.0,108950.0,0.16924158]
[1748418451391,0.57830537,108960.0,108950.0,0.20134158]
[1748418452102,0.57830537,108960.0,108950.0,0.45134158]
[1748418452403,0.57833777,108960.0,108950.0,0.45134158]
[1748418455897,0.57833777,108960.0,108950.0,0.06924158]
[1748418456097,0.57833777,108960.0,108950.0,0.22924158]
[1748418456692,0.57832882,108960.0,108950.0,0.22924158]
[1748418459793,0.57932882,108960.0,108950.0,0.22924158]
[1748418460396,0.57832882,108960.0,108950.0,0.22924158]
[1748418460591,0.58938164,108960.0,108950.0,0.22924158]
[1748418460797,0.54102659,108960.0,108950.0,0.22924158]
[1748418460994,0.58032869,108960.0,108950.0,0.22924158]
[1748418464306,0.58947069,108960.0,108950.0,0.22924158]
[1748418464909,0.95027069,108960.0,108950.0,0.22924158]
[1748418465299,0.95027108,108960.0,108950.0,0.22924158]
[1748418467908,0.95027108,108960.0,108950.0,0.08806019]
[1748418469709,0.91096859,108960.0,108950.0,0.08806019]
[1748418470009,0.95055457,108960.0,108950.0,0.08806019]
[1748418471105,0.95055457,108960.0,108950.0,0.11826019]
[1748418471610,0.95055457,108960.0,108950.0,0.1635093]
[1748418474312,0.70787807,108960.0,108950.0,0.1635093]
[1748418476007,0.70787807,108960.0,108950.0,0.01943008]
[1748418476205,0.70787807,108960.0,108950.0,0.16943008]
[1748418476403,0.70787807,108960.0,108950.0,0.01943008]
[1748418477214,0.70787807,108960.0,108950.0,0.02943008]
[1748418477911,0.69873607,108960.0,108950.0,0.06637036]
[1748418478704,0.69873607,108960.0,108950.0,0.05637036]
[1748418479414,0.69873607,108960.0,108950.0,0.08877036]
[1748418479614,0.69873607,108960.0,108950.0,0.12197036]
[1748418481411,0.69872705,108960.0,108950.0,0.12197036]
[1748418481614,0.94122243,108960.0,108950.0,0.12197036]
[1748418483018,0.94122243,108960.0,108950.0,0.10254028]
[1748418483514,0.93122243,108960.0,108950.0,0.11254028]
[1748418487520,0.89164547,108960.0,108950.0,0.11254028]
[1748418488020,0.40959778,108960.0,108950.0,0.41254028]
[1748418488215,0.53084547,108960.0,108950.0,0.43934028]
[1748418488520,0.28835009,108960.0,108950.0,0.43934028]
[1748418488719,0.53084547,108960.0,108950.0,0.43934028]
[1748418489114,0.53096547,108960.0,108950.0,0.43934028]
[1748418489623,0.57054399,108960.0,108950.0,0.43934028]
[1748418489814,0.56854399,108960.0,108950.0,0.43934028]
[1748418490006,0.57054399,108960.0,108950.0,0.43934028]
[1748418490920,0.32804861,108960.0,108950.0,0.43934028]
[1748418491221,0.57054399,108960.0,108950.0,0.43934028]
[1748418491621,0.61012326,108960.0,108950.0,0.43934028]
[1748418496423,0.61012326,108960.0,108950.0,0.41254028]
[1748418500725,0.61012143,108960.0,108950.0,0.41254028]
[1748418503028,0.61012143,108960.0,108950.0,0.45784233]
[1748418505225,0.61012145,108960.0,108950.0,0.45784233]
[1748418506029,0.61012145,108960.0,108950.0,0.42464233]
[1748418506427,0.61012145,108960.0,108950.0,0.39224233]
[1748418506629,0.61012145,108960.0,108950.0,0.20224233]
[1748418509734,0.61012264,108960.0,108950.0,0.20223922]
[1748418513128,0.61012264,108960.0,108950.0,0.23553922]
[1748418513829,0.61000264,108960.0,108950.0,0.23553922]
[1748418514029,0.57054399,108960.0,108950.0,0.5424405]
[1748418514326,0.57054399,108960.0,108950.0,0.9032405]
[1748418514724,0.32804861,108960.0,108950.0,0.9032405]
[1748418515123,0.57054399,108960.0,108950.0,0.9032405]
[1748418518125,0.57054399,108960.0,108950.0,1.0867253]
[1748418518126,0.3852963,108960.0,108950.0,1.0867253]
[1748418518320,0.3851763,108960.0,108950.0,0.9032405]
[1748418518634,0.3852963,108960.0,108950.0,0.9032054]
[1748418518834,0.4154763,108960.0,108950.0,0.9032054]
[1748418519641,0.4155963,108960.0,108950.0,0.9032054]
[1748418520536,0.4155963,108960.0,108950.0,0.90319759]
[1748418521337,0.4155963,108960.0,108950.0,0.54239759]
[1748418521538,0.4155963,108960.0,108950.0,0.90319759]
[1748418522941,0.4155963,108960.0,108950.0,0.90319766]
[1748418525433,0.4462963,108960.0,108950.0,0.90319766]
[1748418527441,0.4462963,108960.0,108950.0,0.90324221]
[1748418528642,0.56754399,108960.0,108950.0,0.90324221]
[1748418531744,0.56754399,108960.0,108950.0,0.85792523]
[1748418531944,0.56754399,108960.0,108950.0,0.90324367]
[1748418532444,0.56754399,108960.0,108950.0,0.54244367]
[1748418532652,0.56754399,108960.0,108950.0,0.85792523]
[1748418532838,0.56754399,108960.0,108950.0,0.821]
[1748418533541,0.56754399,108960.0,108950.0,0.85791681]
[1748418533845,0.56754399,108960.0,108950.0,0.90323237]
[1748418534842,0.45512077,108960.0,108950.0,0.821]
[1748418535046,0.4155963,108960.0,108950.0,0.90323237]
[1748418536543,0.4473963,108960.0,108950.0,0.9032346]
[1748418536949,0.4473963,108960.0,108950.0,1.3197946]
[1748418538242,0.4473963,108960.0,108950.0,1.13368685]
[1748418538536,0.32614861,108960.0,108950.0,1.31717155]
[1748418538850,0.4472763,108960.0,108950.0,1.27186008]
[1748418539150,0.4473963,108960.0,108950.0,1.27186008]
[1748418539343,0.4472763,108960.0,108950.0,1.39310777]
[1748418539648,0.4155963,108960.0,108950.0,1.39310777]
[1748418539849,0.4155963,108960.0,108950.0,1.35618464]
[1748418540049,0.4145963,108960.0,108950.0,1.35618464]
[1748418540251,0.4145963,108960.0,108950.0,1.40150243]
[1748418540454,0.4145963,108960.0,108950.0,1.44765713]
[1748418540950,0.4135963,108960.0,108950.0,1.44765713]
[1748418541341,0.4135963,108960.0,108950.0,1.50935713]
[1748418542442,0.4135963,108960.0,108950.0,1.38810944]
[1748418543747,0.4135963,108960.0,108950.0,1.38792888]
[1748418544154,0.4454963,108960.0,108950.0,1.38792888]
[1748418546447,0.4454963,108960.0,108950.0,1.50917657]
[1748418546941,0.4454963,108960.0,108950.0,1.50913657]
[1748418547552,0.4454963,108960.0,108950.0,1.38788888]
[1748418553566,0.4454963,108960.0,108950.0,1.38788267]
[1748418554349,0.4454963,108960.0,108950.0,1.20863895]
[1748418554756,0.4454963,108960.0,108950.0,1.46379042]
[1748418560366,0.4454963,108960.0,108950.0,1.82459042]
[1748418561365,0.4454963,108960.0,108950.0,1.94583811]
[1748418561757,0.4454963,108960.0,108950.0,1.94600933]
[1748418566260,0.4454963,108960.0,108950.0,1.94601453]
[1748418566957,0.4454963,108960.0,108950.0,1.22441453]
[1748418567264,0.4454963,108960.0,108950.0,1.94601453]
[1748418570765,0.4454963,108960.0,108950.0,1.94602849]
[1748418571861,0.4454963,108960.0,108950.0,1.91442849]
[1748418574266,0.4454963,108960.0,108950.0,1.94762849]
[1748418574959,0.4454963,108960.0,108950.0,1.94761427]
[1748418576168,0.4444963,108960.0,108950.0,1.94861427]
[1748418576768,0.4444963,108960.0,108950.0,1.90245957]
[1748418577068,0.4444963,108960.0,108950.0,1.948677]
[1748418577670,0.4434963,108960.0,108950.0,1.948677]
[1748418580767,0.4434963,108960.0,108950.0,1.82742931]
[1748418580972,0.4434963,108960.0,108950.0,1.948677]
[1748418582473,0.4434963,108960.0,108950.0,1.227077]
[1748418582677,0.4434963,108960.0,108950.0,1.948677]
[1748418583874,0.4434963,108960.0,108950.0,1.94867699]
[1748418584680,0.56474399,108960.0,108950.0,1.94867699]
[1748418585072,0.56474399,108960.0,108950.0,1.22707699]
[1748418585272,0.56474399,108960.0,108950.0,1.94867699]
[1748418585880,0.56474399,108960.0,108950.0,1.90245956]
[1748418586071,0.56474399,108960.0,108950.0,1.96708832]
[1748418586479,0.56474399,108960.0,108950.0,1.90366832]
[1748418586681,0.56474399,108960.0,108950.0,1.78242063]
[1748418588389,0.56474399,108960.0,108950.0,1.78242444]
[1748418588585,0.56474399,108960.0,108950.0,1.88526828]
[1748418589284,0.56474399,108960.0,108950.0,1.83904337]
[1748418590188,0.56474399,108960.0,108950.0,1.88526839]
[1748418592684,0.4434963,108960.0,108950.0,1.88526839]
[1748418593080,0.56474399,108960.0,108950.0,1.164136]
[1748418593275,0.56474399,108960.0,108950.0,1.676376]
[1748418595287,0.56474399,108960.0,108950.0,1.8598608]
[1748418595593,0.56474399,108960.0,108950.0,1.676376]
[1748418595891,0.56474399,108960.0,108950.0,1.676336]
[1748418596095,0.56474399,108960.0,108950.0,1.8598208]
[1748418596777,0.56474399,108960.0,108950.0,1.8597808]
[1748418598687,0.56474399,108960.0,108950.0,1.3476208]
[1748418598891,0.56474399,108960.0,108950.0,1.8597808]
[1748418599092,0.56474399,108960.0,108950.0,1.164136]
[1748418599290,0.56474399,108960.0,108950.0,1.676296]
[1748418599493,0.56474399,108960.0,108950.0,1.8597808]
[1748418600893,0.56474399,108960.0,108950.0,1.676296]
[1748418601091,0.56474399,108960.0,108950.0,1.8597808]
[1748418604095,0.56474399,108960.0,108950.0,1.164136]
[1748418604298,0.56474399,108960.0,108950.0,0.8076]
[1748418604491,0.68599168,108960.0,108950.0,0.48376885]
[1748418604692,0.72557114,108960.0,108950.0,0.48376885]
[1748418605190,0.72557114,108960.0,108950.0,0.29376885]
[1748418605594,0.68599168,108960.0,108950.0,0.33907983]
[1748418606202,0.56474399,108960.0,108950.0,0.33907983]
[1748418606497,0.68599168,108960.0,108950.0,0.33907983]
[1748418607593,0.56474399,108960.0,108950.0,0.33907983]
[1748418607786,0.56474399,108960.0,108950.0,0.24327983]
[1748418608787,0.56474399,108960.0,108950.0,0.24447753]
[1748418608997,1.45634327,108960.0,108950.0,0.161]
[1748418609893,1.45634327,108960.0,108950.0,0.001]
[1748418610697,1.45834327,108960.0,108950.0,0.001]
[1748418610897,0.1834848,108950.0,108940.0,0.03710638]
[1748418611102,0.39893249,108950.0,108940.0,0.35710638]
[1748418611805,0.52018018,108950.0,108940.0,0.35710638]
[1748418612099,0.52118018,108950.0,108940.0,0.35710638]
[1748418613395,0.52218018,108950.0,108940.0,0.35710638]
[1748418615304,0.1835185,108930.0,108920.0,0.01390403]
[1748418615500,0.42601388,108930.0,108920.0,0.07390403]
[1748418615700,0.52031388,108930.0,108920.0,0.06390403]
[1748418615902,0.52031388,108930.0,108920.0,0.29390403]
[1748418616498,0.52031388,108930.0,108920.0,0.28012]
[1748418616907,0.52031388,108930.0,108920.0,0.28212]
[1748418617104,0.52031388,108930.0,108920.0,0.28412]
[1748418617505,0.52031388,108930.0,108920.0,0.28212]
[1748418617806,0.52031388,108930.0,108920.0,0.28112]
[1748418620510,0.52479597,108930.0,108920.0,0.28112]
[1748418621512,0.40354828,108930.0,108920.0,0.28112]
[1748418626717,0.28230059,108930.0,108920.0,0.28112]
[1748418627025,0.40354828,108930.0,108920.0,0.28112]
[1748418628314,0.73354828,108930.0,108920.0,0.28112]
[1748418628522,1.89904366,108930.0,108920.0,0.021]
[1748418628722,0.1835353,108920.0,108910.0,0.00151486]
[1748418628917,1.00217837,108920.0,108910.0,0.33151486]
[1748418629221,1.00217837,108920.0,108910.0,0.33163486]
[1748418629409,0.88093068,108920.0,108910.0,0.11163486]
[1748418629918,0.88093068,108920.0,108910.0,0.11151486]
[1748418630110,0.88093068,108920.0,108910.0,0.11363486]
[1748418631322,0.88093068,108920.0,108910.0,0.11563486]
[1748418631519,0.89006798,108920.0,108910.0,0.11563486]
[1748418634021,0.88093068,108920.0,108910.0,0.11563486]
[1748418635822,0.88541277,108920.0,108910.0,0.11563486]
[1748418636920,0.88541277,108920.0,108910.0,0.11363486]
[1748418637118,0.88741277,108920.0,108910.0,0.11363486]
[1748418637513,0.88941277,108920.0,108910.0,0.11163486]
[1748418637713,0.88941277,108920.0,108910.0,0.15782696]
[1748418639826,0.88941277,108920.0,108910.0,0.15784758]
[1748418640515,0.64691739,108920.0,108910.0,0.15784758]
[1748418640714,0.88941277,108920.0,108910.0,0.15784758]
[1748418640922,0.52861277,108920.0,108910.0,0.15784758]
[1748418643518,0.52861277,108920.0,108910.0,0.19469273]
[1748418643717,0.52861277,108920.0,108910.0,0.15784758]
[1748418644426,0.52861277,108920.0,108910.0,0.11163486]
[1748418644634,0.40736508,108920.0,108910.0,0.11163486]
[1748418644933,0.52861277,108920.0,108910.0,0.17643486]
[1748418645534,0.52861277,108920.0,108910.0,0.11163486]
[1748418649530,0.52861277,108920.0,108910.0,0.14848001]
[1748418650435,0.52861277,108920.0,108910.0,0.19477715]
[1748418651624,0.40736508,108920.0,108910.0,0.19477715]
[1748418652331,0.28611739,108920.0,108910.0,0.44557715]
[1748418652537,0.25291739,108920.0,108910.0,0.9045277]
[1748418652717,0.37416508,108920.0,108910.0,1.0880797]
[1748418653635,0.37216508,108920.0,108910.0,1.0880797]
[1748418653935,0.37416508,108920.0,108910.0,1.0880797]
[1748418654435,0.37416508,108920.0,108910.0,0.96683201]
[1748418654731,0.37216508,108920.0,108910.0,1.0880797]
[1748418654925,0.40466508,108920.0,108910.0,1.0890797]
[1748418655132,0.40266508,108920.0,108910.0,1.0890797]
[1748418655340,0.40266508,108920.0,108910.0,1.08870237]
[1748418656035,0.40266508,108920.0,108910.0,0.96745468]
[1748418659823,0.40266508,108920.0,108910.0,0.96545468]
[1748418661228,0.39818299,108920.0,108910.0,0.96545468]
[1748418662234,0.40266508,108920.0,108910.0,0.96545468]
[1748418666536,0.40266508,108920.0,108910.0,1.38189468]
[1748418666735,0.40266508,108920.0,108910.0,0.96545468]
[1748418666939,0.40266508,108920.0,108910.0,1.38189468]
[1748418667438,0.40266508,108920.0,108910.0,1.43713018]
[1748418669139,0.40266508,108920.0,108910.0,1.43696577]
[1748418671341,0.39818299,108920.0,108910.0,1.43696577]
[1748418672242,0.40266508,108920.0,108910.0,1.43696577]
[1748418673148,0.40266508,108920.0,108910.0,1.55821346]
[1748418673342,0.40266508,108920.0,108910.0,1.91901346]
[1748418674447,0.40266508,108920.0,108910.0,1.91902547]
[1748418674941,0.40266508,108920.0,108910.0,1.79777778]
[1748418675246,0.40266508,108920.0,108910.0,1.75171046]
[1748418675546,0.40266508,108920.0,108910.0,1.03011046]
[1748418676040,0.40266508,108920.0,108910.0,1.75171046]
[1748418676948,0.28141739,108920.0,108910.0,1.75171046]
[1748418677142,0.40266508,108920.0,108910.0,1.75171046]
[1748418678549,0.40266508,108920.0,108910.0,1.79777778]
[1748418679253,0.40266508,108920.0,108910.0,1.75171046]
[1748418679549,0.40266508,108920.0,108910.0,1.03011046]
[1748418679752,0.40266508,108920.0,108910.0,1.79777778]
[1748418680144,0.28141739,108920.0,108910.0,1.79777778]
[1748418680347,0.40266508,108920.0,108910.0,1.79777778]
[1748418682553,0.40266508,108920.0,108910.0,1.79783168]
[1748418683154,0.40266508,108920.0,108910.0,1.79771168]
[1748418683653,0.40266508,108920.0,108910.0,1.89347168]
[1748418683853,0.40266508,108920.0,108910.0,2.07515022]
[1748418684359,0.40266508,108920.0,108910.0,1.89347168]
[1748418685954,0.40266508,108920.0,108910.0,2.0215547]
[1748418686653,0.40266508,108920.0,108910.0,1.84964161]
[1748418686852,0.40266508,108920.0,108910.0,1.20935859]
[1748418687048,0.40266508,108920.0,108910.0,1.72154236]
[1748418687255,0.40266508,108920.0,108910.0,1.84962538]
[1748418687757,0.40266508,108920.0,108910.0,1.72154236]
[1748418688471,0.39818299,108920.0,108910.0,1.72154236]
[1748418689447,0.40266508,108920.0,108910.0,1.72154236]
[1748418690559,0.39818299,108920.0,108910.0,1.72154236]
[1748418692252,0.39818299,108920.0,108910.0,1.84279005]
[1748418695561,0.40266508,108920.0,108910.0,1.84279005]
[1748418696061,0.40266508,108920.0,108910.0,1.84279451]
[1748418696862,0.40266508,108920.0,108910.0,1.89639003]
[1748418697064,0.40266508,108920.0,108910.0,2.02447305]
[1748418697262,0.40266508,108920.0,108910.0,2.08910181]
[1748418697657,0.39818299,108920.0,108910.0,2.08910181]
[1748418697859,0.39818299,108920.0,108910.0,2.02447305]
[1748418698259,0.39818299,108920.0,108910.0,2.08910181]
[1748418699565,0.39818299,108920.0,108910.0,1.97087753]
[1748418699958,0.39818299,108920.0,108910.0,1.84279451]
[1748418700657,0.39818299,108920.0,108910.0,1.84279297]
[1748418704873,0.39818299,108920.0,108910.0,1.84279222]
[1748418707574,0.39818299,108920.0,108910.0,1.12119222]
[1748418707873,0.39818299,108920.0,108910.0,1.84279222]
[1748418709473,0.39818299,108920.0,108910.0,1.84277862]
[1748418711773,0.39818299,108920.0,108910.0,1.33061862]
[1748418711977,0.39818299,108920.0,108910.0,1.42633862]
[1748418712656,0.0934,108920.0,108910.0,1.33061862]
[1748418712863,0.39665722,108940.0,108930.0,0.1835184]
[1748418713060,0.39665722,108940.0,108930.0,1.91844609]
[1748418713263,0.39665722,108940.0,108930.0,1.97123958]
[1748418713458,0.39677722,108940.0,108930.0,1.92494609]
[1748418714476,0.42837722,108940.0,108930.0,1.92494609]
[1748418714666,0.42837722,108940.0,108930.0,1.95604609]
[1748418715368,0.42837722,108940.0,108930.0,1.99399752]
[1748418715964,0.49367722,108940.0,108930.0,1.99399752]
[1748418716167,0.49367722,108940.0,108930.0,2.00333958]
[1748418716379,0.49367722,108940.0,108930.0,1.95704609]
[1748418716568,0.49367722,108940.0,108930.0,1.8357984]
[1748418716765,0.49367722,108940.0,108930.0,1.95704609]
[1748418719275,0.49367722,108940.0,108930.0,1.99396986]
[1748418720071,0.49367722,108940.0,108930.0,1.95704609]
[1748418720277,0.49367722,108940.0,108930.0,1.99397016]
[1748418720576,0.49367722,108940.0,108930.0,1.27237016]
[1748418720870,0.49367722,108940.0,108930.0,1.99397016]
[1748418722779,0.49367722,108940.0,108930.0,1.57761016]
[1748418722964,0.49367722,108940.0,108930.0,1.99389016]
[1748418724175,0.49367722,108940.0,108930.0,1.87264247]
[1748418724176,0.61492491,108940.0,108930.0,1.87264247]
[1748418724377,0.49367722,108940.0,108930.0,1.99389016]
[1748418724682,0.49367722,108940.0,108930.0,2.03965011]
[1748418725182,0.49815931,108940.0,108930.0,2.03315011]
[1748418725382,0.619407,108940.0,108930.0,2.03315011]
[1748418725778,0.619407,108940.0,108930.0,1.91190242]
[1748418728580,0.619407,108940.0,108930.0,2.03315011]
[1748418728777,0.49815931,108940.0,108930.0,2.03315011]
[1748418729979,0.619407,108940.0,108930.0,2.03315011]
[1748418730680,0.49815931,108940.0,108930.0,2.03315011]
[1748418731274,0.49815931,108940.0,108930.0,1.99622604]
[1748418731476,0.49815931,108940.0,108930.0,2.03313603]
[1748418731671,0.619407,108940.0,108930.0,2.03313603]
[1748418732578,0.49815931,108940.0,108930.0,2.03313603]
[1748418732781,0.49815931,108940.0,108930.0,1.99622604]
[1748418733176,0.619407,108940.0,108930.0,1.5209125]
[1748418733574,0.619407,108940.0,108930.0,1.3373941]
[1748418733881,0.619407,108940.0,108930.0,1.5209125]
[1748418734081,0.619407,108940.0,108930.0,1.52030565]
[1748418734484,0.619407,108940.0,108930.0,1.33678725]
[1748418734671,0.619407,108940.0,108930.0,1.52031153]
[1748418735782,0.619407,108940.0,108930.0,1.33679313]